fUST/lending_fUST_20250203
["ID","MTS","AMOUNT","RATE_DAILY","PERIOD"]
[351426174,1738567834447,-500.0,0.00016575,2]
[351426175,1738567834456,-500.0,0.00016575,2]
[351426176,1738567834466,-500.0,0.00016575,2]
[351426177,1738567834476,-536.99946223,0.00016575,2]
[351426178,1738567834485,-500.0,0.00016575,2]
[351426179,1738567834495,-500.0,0.00016575,2]
[351426180,1738567834504,-500.0,0.00016575,2]
[351426181,1738567834514,-500.0,0.00016575,2]
[351426182,1738567834523,-500.0,0.00016575,2]
[351426183,1738567834533,-500.0,0.00016575,2]
[351426184,1738567834543,-500.0,0.00016575,2]
[351426185,1738567834552,-500.0,0.00016575,2]
[351426186,1738567834562,-500.0,0.00016575,2]
[351426187,1738567834571,-500.0,0.00016575,2]
[351426188,1738567834581,-500.0,0.00016575,2]
[351426189,1738567834590,-500.0,0.00016575,2]
[351426190,1738567834600,-500.0,0.00016575,2]
[351426191,1738567834610,-566.23,0.00016575,2]
[351426192,1738567834620,-500.0,0.00016575,2]
[351426193,1738567834630,-500.0,0.00016575,2]
[351426194,1738567834640,-500.0,0.00016575,2]
[351426195,1738567834650,-500.0,0.00016575,2]
[351426196,1738567834659,-454.12207255,0.00016575,2]
[351426197,1738567834669,-500.0,0.00016575,2]
[351426198,1738567834679,-500.0,0.00016575,2]
[351426199,1738567834689,-500.0,0.00016575,2]
[351426200,1738567834699,-500.0,0.00016575,2]
[351426201,1738567834709,-500.0,0.00016575,2]
[351426202,1738567834719,-500.0,0.00016575,2]
[351426203,1738567834729,-500.0,0.00016575,2]
[351426204,1738567834739,-500.0,0.00016575,2]
[351426205,1738567834748,-500.0,0.00016575,2]
[351426206,1738567834759,-500.0,0.00016575,2]
[351426207,1738567834768,-572.48,0.00016575,2]
[351426208,1738567834779,-500.0,0.00016575,2]
[351426209,1738567834789,-509.50119761,0.00016575,2]
[351426210,1738567834799,-500.0,0.00016575,2]
[351426211,1738567834808,-371.68842263,0.00016575,2]
[351426212,1738567834818,-785.72,0.00016575,2]
[351426213,1738567834827,-500.0,0.00016575,2]
[351426214,1738567834837,-500.0,0.00016575,2]
[351426215,1738567834847,-855.13,0.00016575,2]
[351426216,1738567834856,-500.0,0.00016575,2]
[351426217,1738567834866,-500.0,0.00016575,2]
[351426218,1738567834875,-883.74,0.00016575,2]
[351426219,1738567834885,-593.06833058,0.00016575,2]
[351426220,1738567834895,-500.0,0.00016575,2]
[351426221,1738567834905,-500.0,0.00016575,2]
[351426222,1738567834915,-500.0,0.00016575,2]
[351426223,1738567834928,-500.0,0.00016575,2]
[351426224,1738567834937,-500.0,0.00016575,2]
[351426225,1738567834946,-500.0,0.00016575,2]
[351426226,1738567834955,-505.94,0.00016575,2]
[351426227,1738567834966,-500.0,0.00016575,2]
[351426228,1738567834975,-500.0,0.00016575,2]
[351426229,1738567834985,-500.0,0.00016575,2]
[351426230,1738567834995,-500.0,0.00016575,2]
[351426231,1738567835005,-500.0,0.00016575,2]
[351426232,1738567835014,-640.26,0.00016575,2]
[351426233,1738567835024,-500.0,0.00016575,2]
[351426234,1738567835034,-1837.38,0.00016575,2]
[351426235,1738567835043,-1478.76,0.00016575,2]
[351426236,1738567835053,-500.0,0.00016575,2]
[351426237,1738567835063,-500.0,0.00016575,2]
[351426238,1738567835082,-2641.65,0.00016575,2]
[351426239,1738567835091,-500.0,0.00016575,2]
[351426240,1738567835101,-500.0,0.00016575,2]
[351426241,1738567835111,-500.0,0.00016575,2]
[351426242,1738567835122,-500.0,0.00016575,2]
[351426243,1738567835132,-500.0,0.00016575,2]
[351426244,1738567835142,-500.0,0.00016575,2]
[351426245,1738567835151,-500.0,0.00016575,2]
[351426246,1738567835161,-1151.2,0.00016575,2]
[351426247,1738567835171,-657.77,0.00016575,2]
[351426248,1738567835180,-500.0,0.00016575,2]
[351426249,1738567835190,-2106.93,0.00016575,2]
[351426250,1738567835200,-567.75,0.00016575,2]
[351426251,1738567835210,-500.0,0.00016575,2]
[351426252,1738567835220,-6381.48,0.00016575,2]
[351426253,1738567835230,-9490.76,0.00016575,2]
[351426254,1738567835240,-513.28,0.00016575,2]
[351426255,1738567835250,-959.45,0.00016575,2]
[351426256,1738567835259,-40110.56,0.00016575,2]
[351426257,1738567835268,-2674.05,0.00016575,2]
[351426258,1738567835278,-500.0,0.00016575,2]
[351426259,1738567835287,-802.54,0.00016575,2]
[351426260,1738567835296,-500.0,0.00016575,2]
[351426261,1738567835306,-1094.36,0.00016575,2]
[351426262,1738567835316,-500.0,0.00016575,2]
[351426263,1738567835326,-500.0,0.00016575,2]
[351426264,1738567835335,-895.58,0.00016575,2]
[351426265,1738567835345,-500.0,0.00016575,2]
[351426266,1738567835354,-802.03,0.00016575,2]
[351426267,1738567835364,-500.0,0.00016575,2]
[351426268,1738567835373,-500.0,0.00016575,2]
[351426269,1738567835383,-500.0,0.00016575,2]
[351426270,1738567835392,-500.0,0.00016575,2]
[351426271,1738567835402,-517.72,0.00016575,2]
[351426272,1738567835411,-500.0,0.00016575,2]
[351426273,1738567835421,-500.0,0.00016575,2]
[351426274,1738567835431,-514.65702013,0.00016575,2]
[351426275,1738567835441,-500.0,0.00016575,2]
[351426276,1738567835451,-500.0,0.00016575,2]
[351426277,1738567835461,-500.0,0.00016575,2]
[351426278,1738567835470,-813.88,0.00016575,2]
[351426279,1738567835480,-924.47,0.00016575,2]
[351426280,1738567835490,-500.0,0.00016575,2]
[351426281,1738567835499,-500.0,0.00016575,2]
[351426282,1738567835508,-500.0,0.00016575,2]
[351426283,1738567835518,-500.0,0.00016575,2]
[351426284,1738567835527,-500.0,0.00016575,2]
[351426285,1738567835537,-500.0,0.00016575,2]
[351426286,1738567835546,-1443.05,0.00016575,2]
[351426287,1738567835555,-500.0,0.00016575,2]
[351426288,1738567835565,-1756.5,0.00016575,2]
[351426289,1738567835574,-530.29,0.00016575,2]
[351426290,1738567835584,-500.0,0.00016575,2]
[351426291,1738567835593,-500.0,0.00016575,2]
[351426292,1738567835603,-500.0,0.00016575,2]
[351426293,1738567835612,-500.0,0.00016575,2]
[351426294,1738567835622,-775.87,0.00016575,2]
[351426295,1738567835631,-500.0,0.00016575,2]
[351426296,1738567835641,-741.56,0.00016575,2]
[351426297,1738567835651,-508.69,0.00016575,2]
[351426298,1738567835660,-500.0,0.00016575,2]
[351426299,1738567835671,-500.0,0.00016575,2]
[351426300,1738567835680,-3946.12,0.00016575,2]
[351426301,1738567835690,-500.0,0.00016575,2]
[351426302,1738567835699,-500.0,0.00016575,2]
[351426303,1738567835709,-538.17,0.00016575,2]
[351426304,1738567835719,-500.0,0.00016575,2]
[351426305,1738567835728,-500.0,0.00016575,2]
[351426306,1738567835738,-1609.82,0.00016575,2]
[351426307,1738567835748,-500.0,0.00016575,2]
[351426308,1738567835758,-593.04,0.00016575,2]
[351426309,1738567835768,-500.0,0.00016575,2]
[351426310,1738567835777,-500.0,0.00016575,2]
[351426311,1738567835787,-971.08,0.00016575,2]
[351426312,1738567835796,-174.882,0.0001663,2]
[351426313,1738567835806,-526.75647373,0.00016711,2]
[351426314,1738567835817,-500.0,0.00016712,2]
[351426315,1738567835826,-500.0,0.00016712,2]
[351426316,1738567835836,-500.0,0.00016712,2]
[351426317,1738567835846,-500.0,0.00016712,2]
[351426318,1738567835855,-500.0,0.00016712,2]
[351426319,1738567835865,-358.35961019,0.00016712,2]
[351426320,1738567835875,-500.0,0.00016712,2]
[351426321,1738567835884,-500.0,0.00016712,2]
[351426322,1738567835894,-500.0,0.00016712,2]
[351426323,1738567835905,-500.0,0.00016712,2]
[351426324,1738567835918,-304.82235716,0.00016712,2]
[351426325,1738567835928,-500.0,0.00016712,2]
[351426326,1738567835938,-409.45,0.00016712,2]
[351426327,1738567835947,-500.0,0.00016712,2]
[351426328,1738567835958,-500.0,0.00016712,2]
[351426329,1738567835967,-500.0,0.00016712,2]
[351426330,1738567835976,-500.0,0.00016712,2]
[351426331,1738567835986,-500.0,0.00016712,2]
[351426332,1738567835997,-315.29472485,0.00016712,2]
[351426333,1738567836006,-500.0,0.00016712,2]
[351426334,1738567836015,-500.0,0.00016712,2]
[351426335,1738567836025,-500.0,0.00016712,2]
[351426336,1738567836034,-500.0,0.00016712,2]
[351426337,1738567836044,-566.23,0.00016712,2]
[351426338,1738567836053,-500.0,0.00016712,2]
[351426339,1738567836063,-500.0,0.00016712,2]
[351426340,1738567836073,-535.06072666,0.00016712,2]
[351426341,1738567836082,-500.0,0.00016712,2]
[351426342,1738567836092,-500.0,0.00016712,2]
[351426343,1738567836101,-500.0,0.00016712,2]
[351426344,1738567836111,-500.0,0.00016712,2]
[351426345,1738567836120,-500.0,0.00016712,2]
[351426346,1738567836129,-500.0,0.00016712,2]
[351426347,1738567836139,-647.04159615,0.00016712,2]
[351426348,1738567836148,-500.0,0.00016712,2]
[351426349,1738567836158,-500.0,0.00016712,2]
[351426350,1738567836167,-500.0,0.00016712,2]
[351426351,1738567836176,-500.0,0.00016712,2]
[351426352,1738567836186,-572.48,0.00016712,2]
[351426353,1738567836195,-500.0,0.00016712,2]
[351426354,1738567836207,-500.0,0.00016712,2]
[351426355,1738567836216,-785.72,0.00016712,2]
[351426356,1738567836226,-500.0,0.00016712,2]
[351426357,1738567836235,-500.0,0.00016712,2]
[351426358,1738567836245,-855.13,0.00016712,2]
[351426359,1738567836254,-500.0,0.00016712,2]
[351426360,1738567836264,-500.0,0.00016712,2]
[351426361,1738567836395,-883.74,0.00016712,2]
[351426362,1738567836405,-318.15018959,0.00016712,2]
[351426363,1738567836415,-500.0,0.00016712,2]
[351426364,1738567836425,-500.0,0.00016712,2]
[351426365,1738567836434,-500.0,0.00016712,2]
[351426366,1738567836444,-500.0,0.00016712,2]
[351426367,1738567836454,-152.56502606,0.00016712,2]
[351426368,1738567836463,-505.94,0.00016712,2]
[351426369,1738567836473,-500.0,0.00016712,2]
[351426370,1738567836483,-500.0,0.00016712,2]
[351426371,1738567836492,-500.0,0.00016712,2]
[351426372,1738567836502,-500.0,0.00016712,2]
[351426373,1738567836511,-500.0,0.00016712,2]
[351426374,1738567836521,-640.26,0.00016712,2]
[351426375,1738567836531,-500.0,0.00016712,2]
[351426376,1738567836540,-1837.38,0.00016712,2]
[351426377,1738567836550,-1478.76,0.00016712,2]
[351426378,1738567836559,-500.0,0.00016712,2]
[351426379,1738567836569,-500.0,0.00016712,2]
[351426380,1738567836579,-2641.65,0.00016712,2]
[351426381,1738567836588,-500.0,0.00016712,2]
[351426382,1738567836598,-500.0,0.00016712,2]
[351426383,1738567836607,-500.0,0.00016712,2]
[351426384,1738567836617,-500.0,0.00016712,2]
[351426385,1738567836627,-500.0,0.00016712,2]
[351426386,1738567836636,-500.0,0.00016712,2]
[351426387,1738567836646,-500.0,0.00016712,2]
[351426388,1738567836655,-1151.2,0.00016712,2]
[351426389,1738567836665,-657.77,0.00016712,2]
[351426390,1738567836675,-500.0,0.00016712,2]
[351426391,1738567836684,-2106.93,0.00016712,2]
[351426392,1738567836693,-567.75,0.00016712,2]
[351426393,1738567836703,-500.0,0.00016712,2]
[351426394,1738567836712,-6381.48,0.00016712,2]
[351426395,1738567836722,-9490.76,0.00016712,2]
[351426396,1738567836731,-513.28,0.00016712,2]
[351426397,1738567836740,-959.45,0.00016712,2]
[351426398,1738567836749,-40110.56,0.00016712,2]
[351426399,1738567836758,-2674.05,0.00016712,2]
[351426400,1738567836768,-500.0,0.00016712,2]
[351426401,1738567836777,-802.54,0.00016712,2]
[351426402,1738567836787,-500.0,0.00016712,2]
[351426403,1738567836797,-1094.36,0.00016712,2]
[351426404,1738567836806,-500.0,0.00016712,2]
[351426405,1738567836815,-500.0,0.00016712,2]
[351426406,1738567836832,-895.58,0.00016712,2]
[351426407,1738567836841,-500.0,0.00016712,2]
[351426408,1738567836851,-802.03,0.00016712,2]
[351426409,1738567836860,-500.0,0.00016712,2]
[351426410,1738567836869,-500.0,0.00016712,2]
[351426411,1738567836880,-437.12508592,0.00016712,2]
[351426412,1738567836889,-500.0,0.00016712,2]
[351426413,1738567836899,-517.72,0.00016712,2]
[351426414,1738567836915,-500.0,0.00016712,2]
[351426415,1738567836927,-551.33669382,0.00016712,2]
[351426416,1738567836937,-500.0,0.00016712,2]
[351426417,1738567836946,-500.0,0.00016712,2]
[351426418,1738567836955,-500.0,0.00016712,2]
[351426419,1738567836965,-813.88,0.00016712,2]
[351426420,1738567836974,-924.47,0.00016712,2]
[351426421,1738567836984,-500.0,0.00016712,2]
[351426422,1738567836995,-500.0,0.00016712,2]
[351426423,1738567837005,-500.0,0.00016712,2]
[351426424,1738567837015,-500.0,0.00016712,2]
[351426425,1738567837024,-500.0,0.00016712,2]
[351426426,1738567837034,-500.0,0.00016712,2]
[351426427,1738567837043,-1443.05,0.00016712,2]
[351426428,1738567837052,-500.0,0.00016712,2]
[351426429,1738567837061,-1756.5,0.00016712,2]
[351426430,1738567837071,-530.29,0.00016712,2]
[351426431,1738567837081,-500.0,0.00016712,2]
[351426432,1738567837090,-500.0,0.00016712,2]
[351426433,1738567837099,-197.87270462,0.00016712,2]
[351426434,1738567837108,-500.0,0.00016712,2]
[351426435,1738567837117,-775.87,0.00016712,2]
[351426436,1738567837126,-500.0,0.00016712,2]
[351426437,1738567837135,-741.56,0.00016712,2]
[351426438,1738567837144,-508.69,0.00016712,2]
[351426439,1738567837154,-500.0,0.00016712,2]
[351426440,1738567837162,-500.0,0.00016712,2]
[351426441,1738567837171,-3946.12,0.00016712,2]
[351426442,1738567837180,-500.0,0.00016712,2]
[351426443,1738567837189,-500.0,0.00016712,2]
[351426444,1738567837198,-538.17,0.00016712,2]
[351426445,1738567837207,-500.0,0.00016712,2]
[351426446,1738567837217,-500.0,0.00016712,2]
[351426447,1738567837227,-1609.82,0.00016712,2]
[351426448,1738567837238,-500.0,0.00016712,2]
[351426449,1738567837248,-593.04,0.00016712,2]
[351426450,1738567837259,-500.0,0.00016712,2]
[351426451,1738567837269,-500.0,0.00016712,2]
[351426452,1738567837279,-971.08,0.00016712,2]
[351426453,1738567837289,-518.10506459,0.0001672,2]
[351426454,1738567837298,-2000.0,0.000168,2]
[351426455,1738567837308,-500.0,0.00016849,2]
[351426456,1738567837317,-500.0,0.00016849,2]
[351426457,1738567837327,-500.0,0.00016849,2]
[351426458,1738567837336,-500.0,0.00016849,2]
[351426459,1738567837346,-500.0,0.00016849,2]
[351426460,1738567837356,-500.0,0.00016849,2]
[351426461,1738567837366,-213.25,0.00016849,2]
[351426462,1738567837375,-500.0,0.00016849,2]
[351426463,1738567837385,-458.40152389,0.00016849,2]
[351426464,1738567837395,-500.0,0.00016849,2]
[351426465,1738567837404,-500.0,0.00016849,2]
[351426466,1738567837413,-500.0,0.00016849,2]
[351426467,1738567837422,-500.0,0.00016849,2]
[351426468,1738567837432,-500.0,0.00016849,2]
[351426469,1738567837441,-500.0,0.00016849,2]
[351426470,1738567837450,-500.0,0.00016849,2]
[351426471,1738567837459,-500.0,0.00016849,2]
[351426472,1738567837468,-500.0,0.00016849,2]
[351426473,1738567837478,-500.0,0.00016849,2]
[351426474,1738567837487,-566.23,0.00016849,2]
[351426475,1738567837496,-500.0,0.00016849,2]
[351426476,1738567837505,-163.49685421,0.00016849,2]
[351426477,1738567837515,-500.0,0.00016849,2]
[351426478,1738567837525,-500.0,0.00016849,2]
[351426479,1738567837534,-452.10188829,0.00016849,2]
[351426480,1738567837543,-500.0,0.00016849,2]
[351426481,1738567837553,-500.0,0.00016849,2]
[351426482,1738567837562,-500.0,0.00016849,2]
[351426483,1738567837571,-500.0,0.00016849,2]
[351426484,1738567837580,-500.0,0.00016849,2]
[351426485,1738567837590,-500.0,0.00016849,2]
[351426486,1738567837599,-500.0,0.00016849,2]
[351426487,1738567837608,-572.48,0.00016849,2]
[351426488,1738567837617,-500.0,0.00016849,2]
[351426489,1738567837626,-500.0,0.00016849,2]
[351426490,1738567837636,-785.72,0.00016849,2]
[351426491,1738567837644,-500.0,0.00016849,2]
[351426492,1738567837654,-500.0,0.00016849,2]
[351426493,1738567837664,-855.13,0.00016849,2]
[351426494,1738567837673,-500.0,0.00016849,2]
[351426495,1738567837683,-500.0,0.00016849,2]
[351426496,1738567837692,-883.74,0.00016849,2]
[351426497,1738567837702,-468.47262675,0.00016849,2]
[351426498,1738567837712,-500.0,0.00016849,2]
[351426499,1738567837721,-500.0,0.00016849,2]
[351426500,1738567837736,-500.0,0.00016849,2]
[351426501,1738567837749,-505.94,0.00016849,2]
[351426502,1738567837763,-500.0,0.00016849,2]
[351426503,1738567837776,-500.0,0.00016849,2]
[351426504,1738567837787,-500.0,0.00016849,2]
[351426505,1738567837798,-500.0,0.00016849,2]
[351426506,1738567837811,-500.0,0.00016849,2]
[351426507,1738567837824,-640.26,0.00016849,2]
[351426508,1738567837836,-500.0,0.00016849,2]
[351426509,1738567837848,-1837.38,0.00016849,2]
[351426510,1738567837862,-1478.76,0.00016849,2]
[351426511,1738567837874,-500.0,0.00016849,2]
[351426512,1738567837886,-500.0,0.00016849,2]
[351426513,1738567837900,-2641.65,0.00016849,2]
[351426514,1738567837913,-539.16457663,0.00016849,2]
[351426515,1738567837930,-500.0,0.00016849,2]
[351426516,1738567837941,-500.0,0.00016849,2]
[351426517,1738567837953,-500.0,0.00016849,2]
[351426518,1738567837968,-500.0,0.00016849,2]
[351426519,1738567837980,-500.0,0.00016849,2]
[351426520,1738567837994,-622.85405026,0.00016849,2]
[351426522,1738567838008,-1151.2,0.00016849,2]
[351426525,1738567838020,-657.77,0.00016849,2]
[351426527,1738567838032,-500.0,0.00016849,2]
[351426528,1738567838042,-2106.93,0.00016849,2]
[351426529,1738567838052,-567.75,0.00016849,2]
[351426530,1738567838064,-500.0,0.00016849,2]
[351426531,1738567838075,-6381.48,0.00016849,2]
[351426532,1738567838087,-9490.76,0.00016849,2]
[351426533,1738567838099,-513.28,0.00016849,2]
[351426534,1738567838112,-959.45,0.00016849,2]
[351426535,1738567838123,-40110.56,0.00016849,2]
[351426536,1738567838135,-2674.05,0.00016849,2]
[351426537,1738567838148,-500.0,0.00016849,2]
[351426538,1738567838160,-802.54,0.00016849,2]
[351426539,1738567838172,-1094.36,0.00016849,2]
[351426540,1738567838184,-500.0,0.00016849,2]
[351426541,1738567838194,-500.0,0.00016849,2]
[351426543,1738567838204,-500.0,0.00016849,2]
[351426545,1738567838214,-895.58,0.00016849,2]
[351426546,1738567838224,-500.0,0.00016849,2]
[351426549,1738567838236,-802.03,0.00016849,2]
[351426551,1738567838249,-500.0,0.00016849,2]
[351426552,1738567838261,-500.0,0.00016849,2]
[351426554,1738567838273,-500.0,0.00016849,2]
[351426555,1738567838283,-517.72,0.00016849,2]
[351426556,1738567838294,-602.80812074,0.00016849,2]
[351426557,1738567838305,-500.0,0.00016849,2]
[351426558,1738567838316,-500.0,0.00016849,2]
[351426559,1738567838328,-500.0,0.00016849,2]
[351426560,1738567838338,-813.88,0.00016849,2]
[351426561,1738567838349,-924.47,0.00016849,2]
[351426562,1738567838359,-500.0,0.00016849,2]
[351426563,1738567838370,-500.0,0.00016849,2]
[351426565,1738567838380,-454.25895665,0.00016849,2]
[351426567,1738567838391,-500.0,0.00016849,2]
[351426569,1738567838402,-500.0,0.00016849,2]
[351426570,1738567838412,-500.0,0.00016849,2]
[351426571,1738567838422,-1443.05,0.00016849,2]
[351426572,1738567838433,-500.0,0.00016849,2]
[351426574,1738567838444,-1756.5,0.00016849,2]
[351426576,1738567838454,-530.29,0.00016849,2]
[351426577,1738567838465,-500.0,0.00016849,2]
[351426579,1738567838476,-500.0,0.00016849,2]
[351426580,1738567838486,-500.0,0.00016849,2]
[351426581,1738567838498,-775.87,0.00016849,2]
[351426582,1738567838509,-500.0,0.00016849,2]
[351426583,1738567838520,-741.56,0.00016849,2]
[351426584,1738567838531,-508.69,0.00016849,2]
[351426585,1738567838543,-500.0,0.00016849,2]
[351426586,1738567838554,-500.0,0.00016849,2]
[351426587,1738567838565,-3946.12,0.00016849,2]
[351426588,1738567838576,-500.0,0.00016849,2]
[351426589,1738567838587,-500.0,0.00016849,2]
[351426590,1738567838598,-538.17,0.00016849,2]
[351426591,1738567838611,-500.0,0.00016849,2]
[351426592,1738567838623,-500.0,0.00016849,2]
[351426593,1738567838635,-1609.82,0.00016849,2]
[351426594,1738567838646,-582.16,0.00016849,2]
[351426595,1738567838657,-593.04,0.00016849,2]
[351426596,1738567838668,-500.0,0.00016849,2]
[351426597,1738567838680,-333.30757611,0.00016849,2]
[351426598,1738567838691,-971.08,0.00016849,2]
[351426599,1738567838701,-500.0,0.00016904,2]
[351426600,1738567838712,-500.0,0.00016986,2]
[351426601,1738567838723,-500.0,0.00016986,2]
[351426602,1738567838734,-500.0,0.00016986,2]
[351426603,1738567838745,-500.0,0.00016986,2]
[351426604,1738567838755,-157.92512267,0.00016986,2]
[351426605,1738567838767,-500.0,0.00016986,2]
[351426607,1738567838778,-500.0,0.00016986,2]
[351426609,1738567838788,-500.0,0.00016986,2]
[351426611,1738567838799,-500.0,0.00016986,2]
[351426613,1738567838809,-500.0,0.00016986,2]
[351426614,1738567838826,-500.0,0.00016986,2]
[351426615,1738567838837,-500.0,0.00016986,2]
[351426616,1738567838848,-500.0,0.00016986,2]
[351426617,1738567838858,-500.0,0.00016986,2]
[351426618,1738567838871,-548.77500287,0.00016986,2]
[351426619,1738567838882,-500.0,0.00016986,2]
[351426620,1738567838893,-500.0,0.00016986,2]
[351426621,1738567838904,-566.23,0.00016986,2]
[351426622,1738567838918,-500.0,0.00016986,2]
[351426623,1738567838929,-500.0,0.00016986,2]
[351426624,1738567838939,-500.0,0.00016986,2]
[351426625,1738567838951,-500.0,0.00016986,2]
[351426626,1738567838962,-500.0,0.00016986,2]
[351426627,1738567838972,-500.0,0.00016986,2]
[351426628,1738567838983,-500.0,0.00016986,2]
[351426629,1738567838995,-500.0,0.00016986,2]
[351426630,1738567839006,-500.0,0.00016986,2]
[351426631,1738567839016,-500.0,0.00016986,2]
[351426632,1738567839027,-572.48,0.00016986,2]
[351426633,1738567839038,-500.0,0.00016986,2]
[351426634,1738567839049,-500.0,0.00016986,2]
[351426635,1738567839060,-785.72,0.00016986,2]
[351426636,1738567839070,-500.0,0.00016986,2]
[351426637,1738567839081,-500.0,0.00016986,2]
[351426638,1738567839092,-855.13,0.00016986,2]
[351426639,1738567839103,-500.0,0.00016986,2]
[351426640,1738567839113,-500.0,0.00016986,2]
[351426641,1738567839124,-883.74,0.00016986,2]
[351426642,1738567839134,-500.0,0.00016986,2]
[351426643,1738567839144,-500.0,0.00016986,2]
[351426644,1738567839156,-500.0,0.00016986,2]
[351426645,1738567839166,-505.94,0.00016986,2]
[351426646,1738567839177,-500.0,0.00016986,2]
[351426647,1738567839187,-500.0,0.00016986,2]
[351426648,1738567839198,-500.0,0.00016986,2]
[351426649,1738567839211,-500.0,0.00016986,2]
[351426650,1738567839222,-500.0,0.00016986,2]
[351426651,1738567839232,-640.26,0.00016986,2]
[351426652,1738567839243,-500.0,0.00016986,2]
[351426653,1738567839254,-1837.38,0.00016986,2]
[351426654,1738567839265,-1478.76,0.00016986,2]
[351426655,1738567839275,-500.0,0.00016986,2]
[351426656,1738567839286,-500.0,0.00016986,2]
[351426657,1738567839297,-2641.65,0.00016986,2]
[351426658,1738567839307,-500.0,0.00016986,2]
[351426659,1738567839324,-500.0,0.00016986,2]
[351426660,1738567839342,-500.0,0.00016986,2]
[351426661,1738567839529,-232.83181803,0.00016986,2]
[351426662,1738567839543,-500.0,0.00016986,2]
[351426663,1738567839554,-1151.2,0.00016986,2]
[351426664,1738567839564,-657.77,0.00016986,2]
[351426665,1738567839579,-500.0,0.00016986,2]
[351426666,1738567839589,-2106.93,0.00016986,2]
[351426667,1738567839598,-567.75,0.00016986,2]
[351426668,1738567839607,-500.0,0.00016986,2]
[351426669,1738567839617,-6381.48,0.00016986,2]
[351426670,1738567839626,-9490.76,0.00016986,2]
[351426671,1738567839635,-513.28,0.00016986,2]
[351426672,1738567839645,-959.45,0.00016986,2]
[351426673,1738567839654,-40110.56,0.00016986,2]
[351426674,1738567839663,-2674.05,0.00016986,2]
[351426675,1738567839673,-500.0,0.00016986,2]
[351426676,1738567839683,-802.54,0.00016986,2]
[351426677,1738567839692,-1094.36,0.00016986,2]
[351426678,1738567839701,-500.0,0.00016986,2]
[351426679,1738567839712,-500.0,0.00016986,2]
[351426680,1738567839721,-500.0,0.00016986,2]
[351426681,1738567839732,-895.58,0.00016986,2]
[351426682,1738567839742,-500.0,0.00016986,2]
[351426683,1738567839751,-802.03,0.00016986,2]
[351426684,1738567839760,-500.0,0.00016986,2]
[351426685,1738567839769,-213.42436868,0.00016986,2]
[351426686,1738567839779,-500.0,0.00016986,2]
[351426687,1738567839788,-517.72,0.00016986,2]
[351426688,1738567839798,-500.0,0.00016986,2]
[351426689,1738567839807,-500.0,0.00016986,2]
[351426690,1738567839818,-500.0,0.00016986,2]
[351426691,1738567839827,-813.88,0.00016986,2]
[351426692,1738567839837,-924.47,0.00016986,2]
[351426693,1738567839846,-500.0,0.00016986,2]